fUSD/lending_fUSD_20250514
["ID","MTS","AMOUNT","RATE_DAILY","PERIOD"]
[361098590,1747253450879,-500.0,0.00011473,2]
[361098591,1747253450888,-507.35604364,0.00011473,2]
[361098592,1747253450898,-500.0,0.00011473,2]
[361098593,1747253450907,-229.51079889,0.00011473,2]
[361098594,1747253450917,-500.0,0.00011473,2]
[361098595,1747253450928,-2751.0,0.00011507,2]
[361098596,1747253450940,-864.05076374,0.00011593,2]
[361098597,1747253450949,-1000.0,0.00011609,2]
[361098598,1747253450959,-297.28499732,0.00011643,2]
[361098599,1747253450969,-804.13,0.00011711,2]
[361098600,1747253450979,-804.13,0.00011711,2]
[361098601,1747253450988,-401.83,0.00011711,2]
[361098602,1747253450998,-1000.0,0.00011721,2]
[361098603,1747253451009,-253.01614408,0.0001173,2]
[361098604,1747253451019,-693.3919763,0.00011734,2]
[361098605,1747253451028,-1250.79,0.0001174,2]
[361098606,1747253451037,-400.0,0.0001174,2]
[361098607,1747253451046,-548.06,0.0001174,2]
[361098608,1747253451056,-400.0,0.0001174,2]
[361098609,1747253451066,-400.0,0.0001174,2]
[361098610,1747253451075,-967.34,0.0001174,2]
[361098611,1747253451085,-1792.4,0.0001174,2]
[361098612,1747253451094,-400.0,0.0001174,2]
[361098613,1747253451104,-400.0,0.0001174,2]
[361098614,1747253451113,-1165.22,0.0001174,2]
[361098615,1747253451122,-400.0,0.0001174,2]
[361098616,1747253451132,-400.0,0.0001174,2]
[361098617,1747253451141,-400.0,0.0001174,2]
[361098618,1747253451151,-586.53,0.0001174,2]
[361098619,1747253451161,-655.69,0.0001174,2]
[361098620,1747253451171,-954.57,0.0001174,2]
[361098621,1747253451180,-400.0,0.0001174,2]
[361098622,1747253451190,-500.0,0.0001174,2]
[361098623,1747253451200,-400.0,0.0001174,2]
[361098624,1747253451210,-400.0,0.0001174,2]
[361098625,1747253451219,-583.57,0.0001174,2]
[361098626,1747253451228,-949.04,0.0001174,2]
[361098627,1747253451238,-400.0,0.0001174,2]
[361098628,1747253451248,-400.0,0.0001174,2]
[361098629,1747253451258,-400.0,0.0001174,2]
[361098630,1747253451267,-400.0,0.0001174,2]
[361098631,1747253451277,-3752.7,0.0001174,2]
[361098632,1747253451286,-433.23,0.0001174,2]
[361098633,1747253451296,-755.27,0.0001174,2]
[361098634,1747253451305,-500.0,0.0001174,2]
[361098635,1747253451315,-400.0,0.0001174,2]
[361098636,1747253451324,-693.68,0.0001174,2]
[361098637,1747253451334,-489.64,0.0001174,2]
[361098638,1747253451343,-1525.82,0.0001174,2]
[361098639,1747253451353,-6233.06,0.0001174,2]
[361098640,1747253451363,-84879.41,0.0001174,2]
[361098641,1747253451372,-436.38,0.0001174,2]
[361098642,1747253451381,-1179.96,0.0001174,2]
[361098643,1747253451390,-400.0,0.0001174,2]
[361098644,1747253451399,-859.83,0.0001174,2]
[361098645,1747253451409,-586.05,0.0001174,2]
[361098646,1747253451418,-400.0,0.0001174,2]
[361098647,1747253451427,-2790.04,0.0001174,2]
[361098648,1747253451437,-542.26,0.0001174,2]
[361098649,1747253451446,-400.0,0.0001174,2]
[361098650,1747253451455,-153.498772,0.0001174,2]
[361098651,1747253451465,-609.15,0.0001174,2]
[361098652,1747253451474,-400.0,0.0001174,2]
[361098653,1747253451483,-400.0,0.00011741,2]
[361098654,1747253451493,-400.0,0.00011741,2]
[361098655,1747253451502,-910.1,0.00011741,2]
[361098656,1747253451512,-400.0,0.00011741,2]
[361098657,1747253451521,-400.0,0.00011741,2]
[361098658,1747253451531,-400.0,0.00011741,2]
[361098659,1747253451541,-400.0,0.00011741,2]
[361098660,1747253451550,-400.0,0.00011741,2]
[361098661,1747253451560,-400.0,0.00011741,2]
[361098662,1747253451570,-400.0,0.00011741,2]
[361098663,1747253451765,-400.0,0.00011741,2]
[361098664,1747253451775,-400.0,0.00011741,2]
[361098665,1747253451784,-526.77,0.00011741,2]
[361098666,1747253451794,-1017.77,0.00011741,2]
[361098667,1747253451803,-400.0,0.00011741,2]
[361098668,1747253451813,-435.94,0.00011741,2]
[361098669,1747253451822,-400.0,0.00011741,2]
[361098670,1747253451831,-295.86699212,0.00011741,2]
[361098671,1747253451840,-400.0,0.00011741,2]
[361098672,1747253451850,-587.16,0.00011741,2]
[361098673,1747253451860,-400.0,0.00011741,2]
[361098674,1747253451869,-1017.0,0.00011741,2]
[361098675,1747253451879,-400.0,0.00011741,2]
[361098676,1747253451888,-250.0,0.00011741,2]
[361098677,1747253451898,-440.45,0.00011741,2]
[361098678,1747253451908,-400.0,0.00011741,2]
[361098679,1747253451918,-400.0,0.00011741,2]
[361098680,1747253451932,-507.67,0.00011741,2]
[361098681,1747253451942,-673.06,0.00011741,2]
[361098682,1747253451952,-409.66,0.00011741,2]
[361098683,1747253451962,-410.54,0.00011741,2]
[361098684,1747253451972,-400.0,0.00011741,2]
[361098685,1747253451982,-400.0,0.00011741,2]
[361098686,1747253451993,-539.53,0.00011741,2]
[361098687,1747253452003,-600.55,0.00011741,2]
[361098688,1747253452013,-400.0,0.00011741,2]
[361098689,1747253452023,-400.0,0.00011741,2]
[361098690,1747253452033,-400.0,0.00011741,2]
[361098691,1747253452043,-361.89,0.00011741,2]
[361098692,1747253452053,-400.0,0.00011741,2]
[361098693,1747253452062,-400.0,0.00011741,2]
[361098694,1747253452072,-321.9,0.00011741,2]
[361098695,1747253452082,-518.86,0.00011741,2]
[361098696,1747253452092,-400.0,0.00011741,2]
[361098697,1747253452102,-400.0,0.00011741,2]
[361098698,1747253452112,-400.0,0.00011741,2]
[361098699,1747253452122,-400.0,0.00011741,2]
[361098700,1747253452131,-564.25,0.00011741,2]
[361098701,1747253452141,-400.0,0.00011741,2]
[361098702,1747253452151,-400.0,0.00011741,2]
[361098703,1747253452160,-853.48,0.00011741,2]
[361098704,1747253452171,-1884.11,0.00011741,2]
[361098705,1747253452184,-400.0,0.00011741,2]
[361098706,1747253452193,-400.0,0.00011741,2]
[361098707,1747253452204,-438.59,0.00011741,2]
[361098708,1747253452213,-460.9,0.00011741,2]
[361098709,1747253452223,-400.0,0.00011741,2]
[361098710,1747253452233,-400.0,0.00011741,2]
[361098711,1747253452243,-400.0,0.00011741,2]
[361098712,1747253452253,-400.0,0.00011741,2]
[361098713,1747253452263,-400.0,0.00011741,2]
[361098714,1747253452273,-309.3,0.00011741,2]
[361098715,1747253452283,-400.0,0.00011741,2]
[361098716,1747253452293,-461.01,0.00011741,2]
[361098717,1747253452303,-447.99,0.00011741,2]
[361098718,1747253452312,-400.0,0.00011741,2]
[361098719,1747253452321,-363.194107,0.00011741,2]
[361098720,1747253452331,-202.76400791,0.00011741,2]
[361098721,1747253452340,-400.0,0.00011741,2]
[361098722,1747253452349,-400.0,0.00011741,2]
[361098723,1747253452359,-400.0,0.00011741,2]
[361098724,1747253452369,-400.0,0.00011741,2]
[361098725,1747253452378,-400.0,0.00011741,2]
[361098726,1747253452387,-150.66,0.00011741,2]
[361098727,1747253452396,-400.0,0.00011741,2]
[361098728,1747253452406,-400.0,0.00011741,2]
[361098729,1747253452415,-402.0386651,0.00011741,2]
[361098730,1747253452424,-591.76,0.00011741,2]
[361098731,1747253452437,-400.0,0.00011741,2]
[361098732,1747253452446,-400.0,0.00011741,2]
[361098733,1747253452456,-400.0,0.00011741,2]
[361098734,1747253452465,-610.07,0.00011741,2]
[361098735,1747253452475,-400.0,0.00011741,2]
[361098736,1747253452485,-400.0,0.00011741,2]
[361098737,1747253452494,-1000.0,0.00011741,2]
[361098738,1747253452503,-400.0,0.00011741,2]
[361098739,1747253452514,-171.23460217,0.00011741,2]
[361098740,1747253452525,-454.27630611,0.00011741,2]
[361098741,1747253452534,-400.0,0.00011741,2]
[361098742,1747253452543,-447.78,0.00011741,2]
[361098743,1747253452552,-400.0,0.00011741,2]
[361098744,1747253452563,-400.0,0.00011741,2]
[361098745,1747253452573,-505.03,0.00011741,2]
[361098746,1747253452582,-421.41,0.00011741,2]
[361098747,1747253452591,-400.0,0.00011741,2]
[361098748,1747253452602,-485.96,0.00011741,2]
[361098749,1747253452611,-400.0,0.00011741,2]
[361098750,1747253452621,-446.1,0.00011741,2]
[361098751,1747253452631,-400.0,0.00011741,2]
[361098752,1747253452640,-228.46093629,0.00011741,2]
[361098753,1747253452649,-2238.09,0.00011741,2]
[361098754,1747253452658,-434.23,0.00011741,2]
[361098755,1747253452667,-400.0,0.00011741,2]
[361098756,1747253452679,-657.83,0.00011741,2]
[361098757,1747253452689,-835.35,0.00011741,2]
[361098758,1747253452698,-400.0,0.00011741,2]
[361098759,1747253452708,-424.61,0.00011741,2]
[361098760,1747253452717,-400.0,0.00011741,2]
[361098761,1747253452726,-789.93,0.00011741,2]
[361098762,1747253452735,-1290.39,0.00011741,2]
[361098763,1747253452744,-4277.59,0.00011741,2]
[361098764,1747253452754,-400.0,0.00011741,2]
[361098765,1747253452763,-400.0,0.00011741,2]
[361098766,1747253452773,-707.98,0.00011741,2]
[361098767,1747253452783,-400.0,0.00011741,2]
[361098768,1747253452792,-1007.49,0.00011741,2]
[361098769,1747253452801,-400.0,0.00011741,2]
[361098770,1747253452811,-421.21,0.00011741,2]
[361098771,1747253452820,-449.81,0.00011741,2]
[361098772,1747253452829,-400.0,0.00011741,2]
[361098773,1747253452839,-1553.42,0.00011741,2]
[361098774,1747253452848,-1483.94,0.00011741,2]
[361098775,1747253452859,-400.0,0.00011741,2]
[361098776,1747253452869,-493.09,0.00011741,2]
[361098777,1747253452878,-1343.0,0.00011741,2]
[361098778,1747253452888,-400.0,0.00011741,2]
[361098779,1747253452898,-453.03,0.00011741,2]
[361098780,1747253452907,-276.90373263,0.00011741,2]
[361098781,1747253452916,-400.0,0.00011741,2]
[361098782,1747253452927,-1439.79,0.00011741,2]
[361098783,1747253452939,-400.0,0.00011741,2]
[361098784,1747253452948,-400.0,0.00011741,2]
[361098785,1747253452957,-400.0,0.00011741,2]
[361098786,1747253452967,-400.0,0.00011741,2]
[361098787,1747253452976,-171.820135,0.00011741,2]
[361098788,1747253452985,-7686.86,0.00011741,2]
[361098789,1747253452994,-400.0,0.00011741,2]
[361098790,1747253453005,-400.0,0.00011741,2]
[361098791,1747253453015,-400.0,0.00011741,2]
[361098792,1747253453024,-400.0,0.00011741,2]
[361098793,1747253453034,-296.95,0.00011741,2]
[361098794,1747253453043,-400.0,0.00011741,2]
[361098795,1747253453053,-445.58,0.00011741,2]
[361098796,1747253453062,-151.0,0.00011741,2]
[361098797,1747253453071,-500.0,0.00011741,2]
[361098798,1747253453080,-400.0,0.00011741,2]
[361098799,1747253453090,-151.0,0.00011741,2]
[361098800,1747253453100,-784.33,0.00011741,2]
[361098801,1747253453110,-400.0,0.00011741,2]
[361098802,1747253453119,-400.0,0.00011741,2]
[361098803,1747253453128,-4375.34,0.00011741,2]
[361098804,1747253453138,-2813.86,0.00011741,2]
[361098805,1747253453147,-400.0,0.00011741,2]
[361098806,1747253453157,-400.0,0.00011741,2]
[361098807,1747253453166,-538.38,0.00011741,2]
[361098808,1747253453175,-1870.02,0.00011741,2]
[361098809,1747253453187,-1343.73,0.00011741,2]
[361098810,1747253453196,-400.0,0.00011741,2]
[361098811,1747253453206,-400.14,0.00011741,2]
[361098812,1747253453216,-719.77,0.00011741,2]
[361098813,1747253453225,-151.0,0.00011741,2]
[361098814,1747253453234,-1477.81,0.00011741,2]
[361098815,1747253453243,-400.0,0.00011741,2]
[361098816,1747253453252,-4484.83,0.00011741,2]
[361098817,1747253453262,-400.0,0.00011741,2]
[361098818,1747253453271,-222.807695,0.00011741,2]
[361098819,1747253453280,-151.0,0.00011741,2]
[361098820,1747253453290,-512.6,0.00011741,2]
[361098821,1747253453299,-151.0,0.00011741,2]
[361098822,1747253453309,-500.0,0.00011741,2]
[361098823,1747253453318,-9063.39298108,0.00011741,2]
[361098824,1747253453970,-2325.0000005,0.00011741,2]
[361098825,1747253453985,-231.54701842,0.00011741,2]
[361098826,1747253453998,-238.45298158,0.00011741,2]
[361098827,1747253454012,-161.54701842,0.00011741,2]
[361098828,1747253454026,-1217.84,0.00011741,2]
[361098829,1747253454038,-400.0,0.00011741,2]
[361098830,1747253454051,-1832.73,0.00011741,2]
[361098831,1747253454063,-2685.58,0.00011741,2]
[361098832,1747253454076,-150.0,0.00011741,2]
[361098833,1747253454089,-400.0,0.00011741,2]
[361098834,1747253454101,-2307.77,0.00011741,2]
[361098835,1747253454125,-400.0,0.00011741,2]
[361098836,1747253454146,-400.0,0.00011741,2]
[361098837,1747253454162,-400.0,0.00011741,2]
[361098838,1747253454179,-400.0,0.00011741,2]
[361098839,1747253454197,-400.0,0.00011741,2]
[361098840,1747253454213,-487.88722104,0.00011741,2]
[361098841,1747253454229,-400.0,0.00011741,2]
[361098842,1747253454245,-509.06,0.00011741,2]
[361098843,1747253454260,-400.0,0.00011741,2]
[361098844,1747253454274,-400.0,0.00011741,2]
[361098845,1747253454287,-419.61,0.00011741,2]
[361098846,1747253454301,-679.43,0.00011741,2]
[361098847,1747253454316,-400.0,0.00011741,2]
[361098848,1747253454331,-5009.92,0.00011741,2]
[361098849,1747253454345,-400.0,0.00011741,2]
[361098850,1747253454361,-400.0,0.00011741,2]
[361098851,1747253454373,-735.16,0.00011741,2]
[361098852,1747253454384,-400.0,0.00011741,2]
[361098853,1747253454395,-400.0,0.00011741,2]
[361098854,1747253454404,-462.53,0.00011741,2]
[361098855,1747253454413,-5615.06,0.00011741,2]
[361098856,1747253454423,-686.14,0.00011741,2]
[361098857,1747253454434,-400.0,0.00011741,2]
[361098858,1747253454443,-222.54,0.00011741,2]
[361098859,1747253454453,-400.0,0.00011741,2]
[361098860,1747253454463,-19362.87,0.00011741,2]
[361098861,1747253454472,-2428.59,0.00011741,2]
[361098862,1747253454482,-740.49,0.00011741,2]
[361098863,1747253454491,-1019.42,0.00011741,2]
[361098864,1747253454501,-1105.69,0.00011741,2]
[361098865,1747253454510,-400.0,0.00011741,2]
[361098866,1747253454520,-400.0,0.00011741,2]
[361098867,1747253454530,-239.72,0.00011741,2]
[361098868,1747253454541,-151.0,0.00011741,2]
[361098869,1747253454551,-440.01,0.00011741,2]
[361098870,1747253454561,-338.96,0.00011741,2]
[361098871,1747253454571,-240.871277,0.00011741,2]
[361098872,1747253454580,-677.34,0.00011741,2]
[361098873,1747253454590,-797.93,0.00011741,2]
[361098874,1747253454600,-200.0,0.00011741,2]
[361098875,1747253454610,-660.61,0.00011741,2]
[361098876,1747253454620,-400.0,0.00011741,2]
[361098877,1747253454630,-506.04,0.00011741,2]
[361098878,1747253454640,-591.31,0.00011741,2]
[361098879,1747253454649,-460.6,0.00011741,2]
[361098880,1747253454659,-449.97,0.00011741,2]
[361098881,1747253454669,-400.0,0.00011741,2]
[361098882,1747253454679,-400.0,0.00011741,2]
[361098883,1747253454689,-400.0,0.00011741,2]
[361098884,1747253454699,-400.0,0.00011741,2]
[361098885,1747253454708,-400.0,0.00011741,2]
[361098886,1747253454718,-400.0,0.00011741,2]
[361098887,1747253454728,-400.0,0.00011741,2]
[361098888,1747253454738,-1010.22,0.00011741,2]
[361098889,1747253454748,-420.33,0.00011741,2]
[361098890,1747253454757,-13079.85,0.00011741,2]
[361098891,1747253454768,-400.0,0.00011741,2]
[361098892,1747253454778,-712.48,0.00011741,2]
[361098893,1747253454787,-400.0,0.00011741,2]
[361098894,1747253454797,-504.36,0.00011741,2]
[361098895,1747253454806,-417.3,0.00011741,2]
[361098896,1747253454816,-1851.6,0.00011741,2]
[361098897,1747253454826,-400.0,0.00011741,2]
[361098898,1747253454836,-692.61,0.00011741,2]
[361098899,1747253454846,-400.0,0.00011741,2]
[361098900,1747253454855,-1240.12,0.00011741,2]
[361098901,1747253455355,-400.0,0.00011741,2]
[361098902,1747253455376,-4455.508944,0.00011741,2]
[361098903,1747253455389,-400.0,0.00011741,2]
[361098904,1747253455400,-1000.0,0.00011741,2]
[361098905,1747253455409,-4455.508944,0.00011741,2]
[361098906,1747253455419,-400.0,0.00011741,2]
[361098907,1747253455430,-364.18569329,0.00011741,2]
[361098908,1747253455440,-210.51700713,0.00011741,2]
[361098909,1747253455449,-662.99,0.00011741,2]
[361098910,1747253455459,-639.91,0.00011741,2]
[361098911,1747253455469,-1409.69,0.00011741,2]
[361098912,1747253455478,-400.0,0.00011741,2]
[361098913,1747253455488,-400.0,0.00011741,2]
[361098914,1747253455498,-527.63,0.00011741,2]
[361098915,1747253455508,-400.0,0.00011741,2]
[361098916,1747253455517,-901.25,0.00011741,2]
[361098917,1747253455526,-237.88,0.00011741,2]
[361098918,1747253455536,-151.0,0.00011741,2]
[361098919,1747253455545,-530.8114839,0.00011741,2]
[361098920,1747253455554,-451.11,0.00011741,2]
[361098921,1747253455564,-400.0,0.00011741,2]
[361098922,1747253455574,-3290.35,0.00011741,2]
[361098923,1747253455583,-409.04087021,0.00011741,2]
[361098924,1747253455592,-400.0,0.00011741,2]
[361098925,1747253455602,-400.0,0.00011741,2]
[361098926,1747253455611,-400.0,0.00011741,2]
[361098927,1747253455620,-400.0,0.00011741,2]
[361098928,1747253455630,-221.18,0.00011741,2]
[361098929,1747253455639,-487.76,0.00011741,2]
[361098930,1747253455648,-469.58,0.00011741,2]
[361098931,1747253455658,-400.0,0.00011741,2]
[361098932,1747253455667,-782.05,0.00011741,2]
[361098933,1747253455676,-582.58,0.00011741,2]
[361098934,1747253455686,-524.14,0.00011741,2]
[361098935,1747253455695,-456.71,0.00011741,2]
[361098936,1747253455704,-329.217932,0.00011741,2]
[361098937,1747253455715,-400.0,0.00011741,2]
[361098938,1747253455725,-477.73,0.00011741,2]
[361098939,1747253455735,-329.217932,0.00011741,2]
[361098940,1747253455744,-400.0,0.00011741,2]
[361098941,1747253455753,-400.0,0.00011741,2]
[361098942,1747253455762,-631.87,0.00011741,2]
[361098943,1747253455771,-400.0,0.00011741,2]
[361098944,1747253455780,-400.0,0.00011741,2]
[361098945,1747253455790,-400.0,0.00011741,2]
[361098946,1747253455800,-268.92356915,0.00011741,2]
[361098947,1747253455809,-546.33,0.00011741,2]
[361098948,1747253455818,-2405.7,0.00011741,2]
[361098949,1747253455828,-4263.1,0.00011741,2]
[361098950,1747253455837,-400.0,0.00011741,2]
[361098951,1747253455846,-780.92,0.00011741,2]
[361098952,1747253455855,-400.0,0.00011741,2]
[361098953,1747253455864,-400.0,0.00011741,2]
[361098954,1747253455873,-400.0,0.00011741,2]
[361098955,1747253455882,-681.0,0.00011742,2]
[361098956,1747253455891,-400.0,0.00011742,2]
[361098957,1747253455901,-503.61,0.00011742,2]
[361098958,1747253455910,-400.0,0.00011742,2]
[361098959,1747253455919,-400.0,0.00011742,2]
[361098960,1747253455932,-400.0,0.00011742,2]
[361098961,1747253455942,-303.06,0.00011742,2]
[361098962,1747253455952,-400.0,0.00011742,2]
[361098963,1747253455961,-1203.82,0.00011742,2]
[361098964,1747253455970,-400.0,0.00011742,2]
[361098965,1747253455980,-314.52660521,0.00011742,2]
[361098966,1747253455989,-886.35,0.00011742,2]
[361098967,1747253455998,-577.37,0.00011742,2]
[361098968,1747253456008,-722.1,0.00011742,2]
[361098969,1747253456019,-400.0,0.00011742,2]
[361098970,1747253456028,-400.0,0.00011742,2]
[361098971,1747253456037,-400.0,0.00011742,2]
[361098972,1747253456047,-400.0,0.00011742,2]
[361098973,1747253456056,-400.0,0.00011742,2]
[361098974,1747253456066,-400.0,0.00011742,2]
[361098975,1747253456075,-400.0,0.00011742,2]
[361098976,1747253456085,-400.0,0.00011742,2]
[361098977,1747253456094,-400.0,0.00011742,2]
[361098978,1747253456104,-490.52,0.00011742,2]
[361098979,1747253456114,-400.0,0.00011742,2]
[361098980,1747253456124,-400.0,0.00011742,2]
[361098981,1747253456134,-400.0,0.00011742,2]
[361098982,1747253456144,-400.0,0.00011742,2]
[361098983,1747253456153,-400.0,0.00011742,2]
[361098984,1747253456163,-1002.43,0.00011742,2]
[361098985,1747253456172,-428.21,0.00011742,2]
[361098986,1747253456182,-400.0,0.00011742,2]
[361098987,1747253456192,-400.0,0.00011742,2]
[361098988,1747253456202,-400.0,0.00011742,2]
[361098989,1747253456212,-500.0,0.00011742,2]
[361098990,1747253456221,-515.87,0.00011742,2]
[361098991,1747253456231,-400.0,0.00011742,2]
[361098992,1747253456241,-400.0,0.00011742,2]
[361098993,1747253456250,-450.0,0.00011742,2]
[361098994,1747253456260,-420.14,0.00011742,2]
[361098995,1747253456270,-400.0,0.00011742,2]
[361098996,1747253456279,-450.0,0.00011742,2]
[361098997,1747253456289,-400.0,0.00011742,2]
[361098998,1747253456299,-400.0,0.00011742,2]
[361098999,1747253456308,-423.7,0.00011742,2]
[361099000,1747253456318,-666.13,0.00011742,2]
[361099001,1747253456328,-155.17218396,0.00011742,2]
[361099002,1747253456337,-400.0,0.00011742,2]
[361099003,1747253456348,-400.0,0.00011742,2]
[361099004,1747253456357,-400.0,0.00011742,2]
[361099005,1747253456367,-484.23,0.00011742,2]
[361099006,1747253456377,-400.0,0.00011742,2]
[361099007,1747253456387,-955.89,0.00011742,2]
[361099008,1747253456396,-998.51,0.00011742,2]
[361099009,1747253456406,-600.35,0.00011742,2]
[361099010,1747253456415,-400.0,0.00011742,2]
[361099011,1747253456425,-400.0,0.00011742,2]
[361099012,1747253456435,-1248.98,0.00011742,2]
[361099013,1747253456445,-400.57,0.00011742,2]
[361099014,1747253456455,-483.67493547,0.00011742,2]
[361099015,1747253456465,-400.0,0.00011742,2]
[361099016,1747253456475,-400.0,0.00011742,2]
[361099017,1747253456485,-400.46,0.00011742,2]
[361099018,1747253456495,-400.0,0.00011742,2]
[361099019,1747253456505,-400.0,0.00011742,2]
[361099020,1747253456514,-400.0,0.00011742,2]
[361099021,1747253456525,-400.0,0.00011742,2]
[361099022,1747253456534,-400.0,0.00011742,2]
[361099023,1747253456543,-412.59,0.00011742,2]
[361099024,1747253456553,-400.0,0.00011742,2]
[361099025,1747253456563,-203.45,0.00011742,2]
[361099026,1747253456572,-400.0,0.00011742,2]
[361099027,1747253456582,-400.0,0.00011742,2]
[361099028,1747253456591,-400.0,0.00011742,2]
[361099029,1747253456601,-445.79,0.00011742,2]
[361099030,1747253456610,-549.21,0.00011742,2]
[361099031,1747253456619,-400.0,0.00011742,2]
[361099032,1747253456629,-400.0,0.00011742,2]
[361099033,1747253456638,-150.0,0.00011742,2]
[361099034,1747253456648,-524.19873599,0.00011742,2]
[361099035,1747253456657,-544.58,0.00011742,2]
[361099036,1747253456667,-400.0,0.00011742,2]
[361099037,1747253456676,-400.0,0.00011742,2]
[361099038,1747253456686,-400.0,0.00011742,2]
[361099039,1747253456696,-2382.57,0.00011742,2]
[361099040,1747253456706,-371.21,0.00011742,2]
[361099041,1747253456715,-657.27,0.00011742,2]
[361099042,1747253456726,-528.1,0.00011742,2]
[361099043,1747253456735,-873.33,0.00011742,2]
[361099044,1747253456745,-641.75,0.00011742,2]
[361099045,1747253456754,-400.0,0.00011742,2]
[361099046,1747253456763,-522.78,0.00011742,2]
[361099047,1747253456773,-400.0,0.00011742,2]
[361099048,1747253456782,-400.0,0.00011742,2]
[361099049,1747253456791,-459.52,0.00011742,2]
[361099050,1747253456801,-1710.07,0.00011742,2]
[361099051,1747253456811,-400.0,0.00011742,2]
[361099052,1747253456821,-1195.36,0.00011742,2]
[361099053,1747253456830,-400.0,0.00011742,2]
[361099054,1747253456840,-400.0,0.00011742,2]
[361099055,1747253456850,-400.0,0.00011742,2]
[361099056,1747253456859,-400.0,0.00011742,2]
[361099057,1747253456869,-400.0,0.00011742,2]
[361099058,1747253456879,-498.31,0.00011742,2]
[361099059,1747253456888,-400.0,0.00011742,2]
[361099060,1747253456898,-400.0,0.00011742,2]
[361099061,1747253456908,-401.92,0.00011742,2]
[361099062,1747253456917,-1340.65,0.00011742,2]
[361099063,1747253456929,-400.0,0.00011742,2]
[361099064,1747253456940,-480.34,0.00011742,2]
[361099065,1747253456950,-1891.26,0.00011742,2]
[361099066,1747253456962,-400.0,0.00011742,2]
[361099067,1747253456974,-400.0,0.00011742,2]
[361099068,1747253456983,-457.17,0.00011742,2]
[361099069,1747253456992,-519.59,0.00011742,2]
[361099070,1747253457003,-444.56,0.00011742,2]
[361099071,1747253457012,-855.72,0.00011742,2]
[361099072,1747253457022,-714.75,0.00011742,2]
[361099073,1747253457031,-443.57,0.00011742,2]
[361099074,1747253457041,-400.0,0.00011742,2]
[361099075,1747253457050,-400.0,0.00011742,2]
[361099076,1747253457060,-600.97,0.00011742,2]
[361099077,1747253457069,-472.33,0.00011742,2]
[361099078,1747253457079,-356.24169963,0.00011742,2]
[361099079,1747253457088,-400.0,0.00011742,2]
[361099080,1747253457098,-400.0,0.00011742,2]
[361099081,1747253457107,-400.0,0.00011742,2]
[361099082,1747253457117,-441.75,0.00011742,2]
[361099083,1747253457127,-709.43,0.00011742,2]
[361099084,1747253457136,-907.96,0.00011742,2]
[361099085,1747253457145,-400.0,0.00011742,2]
[361099086,1747253457155,-400.0,0.00011742,2]
[361099087,1747253457164,-400.0,0.00011742,2]
[361099088,1747253457174,-768.62,0.00011742,2]
[361099089,1747253457184,-400.0,0.00011742,2]